bitfinex-derivatives/quotes_ETHF0:USTF0_20230401
["timestamp","ask_amount","ask_price","bid_price","bid_amount"]
[1680390275616,0.57517105,1823.8,1823.7,2.89612638]
[1680390275912,0.57517105,1823.8,1823.7,2.89612539]
[1680390276107,0.57517105,1823.8,1823.7,2.21630287]
[1680390278317,1.4379862,1823.9,1823.7,2.21630287]
[1680390278517,1.4379862,1823.9,1823.8,4.0686062]
[1680390278922,0.86281515,1823.9,1823.8,4.13569375]
[1680390280914,1.43749033,1823.9,1823.8,4.13569375]
[1680390281123,0.86281515,1823.9,1823.8,4.13569375]
[1680390281317,0.57467529,1823.9,1823.8,4.13569375]
[1680390281715,1.43749044,1823.9,1823.8,4.13569375]
[1680390281918,0.57467529,1823.9,1823.8,4.13569375]
[1680390282423,1.43749044,1823.9,1823.8,4.13569375]
[1680390282918,0.57467529,1823.9,1823.8,4.13569375]
[1680390283223,1.4374511,1823.9,1823.8,4.13569375]
[1680390283420,0.57463595,1823.9,1823.8,4.13569375]
[1680390283622,1.43743176,1823.9,1823.8,4.13569375]
[1680390284725,0.57461661,1823.9,1823.8,4.13569375]
[1680390284920,0.86281515,1823.9,1823.8,4.13569375]
[1680390285225,0.57459736,1823.9,1823.8,4.13569375]
[1680390286324,1.39359736,1824.0,1823.8,4.4233634]
[1680390286520,1.39359736,1824.0,1823.9,1.86030094]
[1680390287024,0.57459736,1824.0,1823.9,1.86030094]
[1680390289124,0.57459736,1824.0,1823.9,1.92734649]
[1680390291819,2.25241251,1824.1,1823.9,1.92734649]
[1680390292121,1.38959736,1824.1,1824.0,4.78111596]
[1680390294427,0.57459736,1824.1,1824.0,5.60311596]
[1680390294824,1.43741251,1824.2,1824.0,5.60311596]
[1680390295027,0.57459736,1824.2,1824.1,1.0]
[1680390295326,0.57459736,1824.2,1824.1,1.57331596]
[1680390298332,1.39659736,1824.3,1824.1,1.57331596]
[1680390298524,1.39659736,1824.3,1824.2,3.2078]
[1680390298926,2.25941251,1824.3,1824.2,3.2078]
[1680390300823,1.68481515,1824.3,1824.2,3.2078]
[1680390301423,2.25866705,1824.3,1824.2,3.2078]
[1680390301827,1.3958519,1824.3,1824.2,3.2078]
[1680390302533,2.25866705,1824.3,1824.2,3.2078]
[1680390304032,1.3958519,1824.3,1824.2,3.2078]
[1680390304428,2.25865862,1824.3,1824.2,3.2078]
[1680390304626,1.68481515,1824.3,1824.2,3.2078]
[1680390306137,1.68481515,1824.3,1824.2,3.27110741]
[1680390307032,1.67881515,1824.3,1824.2,3.27110741]
[1680390314439,0.816,1824.3,1824.2,3.27110741]
[1680390314640,1.67731976,1824.3,1824.2,3.27110741]
[1680390315037,0.816,1824.3,1824.2,3.27110741]
[1680390315534,1.67732061,1824.3,1824.2,3.27110741]
[1680390315940,0.816,1824.3,1824.2,3.27110741]
[1680390316239,1.677331,1824.3,1824.2,3.27110741]
[1680390316439,0.816,1824.3,1824.2,3.27110741]
[1680390317441,1.6773893,1824.3,1824.2,3.27110741]
[1680390318535,0.816,1824.3,1824.2,3.27110741]
[1680390323750,1.96624731,1824.3,1824.2,3.27110741]
[1680390323951,0.816,1824.3,1824.2,3.27110741]
[1680390324147,1.96624731,1824.3,1824.2,3.27110741]
[1680390326354,1.96624731,1824.3,1824.2,3.26673507]
[1680390328955,2.96624731,1824.3,1824.2,3.26673507]
[1680390329347,2.96624731,1824.3,1824.2,0.06330741]
[1680390330460,3.25397804,1824.3,1824.2,0.06330741]
[1680390331259,4.06797804,1824.3,1824.2,0.06330741]
[1680390334366,4.73371064,1824.3,1824.2,0.06330741]
[1680390334749,1.82,1824.2,1823.9,1.14847585]
[1680390335054,1.82,1823.9,1823.8,4.06917754]
[1680390335249,2.636,1823.9,1823.8,4.06917754]
[1680390335652,3.78627553,1823.9,1823.8,4.06917754]
[1680390335853,2.49825692,1823.9,1823.8,4.06917754]
[1680390336657,2.49825692,1823.9,1823.8,4.10423662]
[1680390337760,2.49825692,1823.9,1823.8,3.24285908]
[1680390342560,3.07261762,1823.9,1823.8,3.24285908]
[1680390344364,2.2103607,1823.9,1823.8,3.24285908]
[1680390344567,3.07261762,1823.9,1823.8,3.24285908]
[1680390345666,2.2103607,1823.9,1823.8,3.24285908]
[1680390348169,2.20259228,1823.9,1823.8,3.24285908]
[1680390350265,1.62823158,1823.9,1823.8,3.24285908]
[1680390353870,1.62823158,1823.9,1823.8,4.10423662]
[1680390354370,1.62823158,1823.9,1823.8,3.24285908]
[1680390355670,1.62823158,1823.9,1823.8,4.10423662]
[1680390355871,2.20259228,1823.9,1823.8,3.24285908]
[1680390357874,1.38659228,1823.9,1823.8,3.24285908]
[1680390358367,0.81223158,1823.9,1823.8,3.24285908]
[1680390358565,0.81223158,1823.9,1823.8,4.10423662]
[1680390358764,0.81223158,1823.9,1823.8,3.24285908]
[1680390358973,1.38659228,1823.9,1823.8,3.24285908]
[1680390359268,0.81223158,1823.9,1823.8,4.10423662]
[1680390359673,0.81223158,1823.9,1823.8,3.24285908]
[1680390359870,1.38659228,1823.9,1823.8,3.24285908]
[1680390360067,0.81223158,1823.9,1823.8,3.24285908]
[1680390360373,1.38659228,1823.9,1823.8,3.24285908]
[1680390362268,0.5743607,1823.9,1823.8,4.06285908]
[1680390362476,0.5743607,1824.0,1823.8,4.92423662]
[1680390362675,0.5743607,1824.0,1823.9,1.0]
[1680390362877,1.3943607,1824.1,1823.9,1.89632888]
[1680390363184,1.3943607,1824.1,1824.0,3.2078]
[1680390366680,1.3943607,1824.1,1824.0,3.24273614]
[1680390368880,2.25661762,1824.1,1824.0,3.24273614]
[1680390369074,1.68225692,1824.1,1824.0,3.24273614]
[1680390371893,1.67725692,1824.1,1824.0,3.24273614]
[1680390381300,1.67725692,1824.1,1824.0,3.26671281]
[1680390382993,3.77927553,1824.1,1824.0,0.05891281]
[1680390387095,1.0,1824.0,1823.7,0.86137754]
[1680390387298,2.50321038,1823.8,1823.7,0.86137754]
[1680390387498,3.50321038,1823.8,1823.7,0.86137754]
[1680390388403,3.50321038,1823.8,1823.6,4.06917754]
[1680390388603,3.21873839,1823.7,1823.6,4.06917754]
[1680390389406,2.21873839,1823.7,1823.6,4.06917754]
[1680390389797,2.21873839,1823.7,1823.3,1.0]
[1680390389798,1.0,1823.6,1823.3,1.43515395]
[1680390389999,3.03484881,1823.4,1823.3,0.86168936]
[1680390390198,4.32226384,1823.4,1823.3,0.86168936]
[1680390390601,4.03427801,1823.4,1823.2,0.86168936]
[1680390390805,1.637,1823.3,1823.2,0.86168936]
[1680390391006,0.822,1823.3,1823.2,0.86168936]
[1680390392508,0.822,1823.3,1823.1,0.86168936]
[1680390392702,0.815,1823.2,1823.1,0.86168936]
[1680390394505,0.815,1823.2,1823.0,1.86168936]
[1680390394708,0.86460133,1823.2,1823.0,1.86168936]
[1680390397006,0.819,1823.1,1823.0,1.86168936]
[1680390401709,0.819,1823.1,1823.0,1.0]
[1680390402013,0.819,1823.1,1822.9,5.06948936]
[1680390402311,0.819,1823.1,1822.9,4.06948936]
[1680390411520,0.04966955,1823.0,1822.9,4.06948936]
[1680390412122,0.819,1823.1,1822.9,4.06948936]
[1680390412419,0.04967362,1823.0,1822.9,4.06948936]
[1680390412923,0.819,1823.1,1822.9,4.06948936]
[1680390413120,0.819,1823.1,1823.0,1.0]
[1680390417026,0.814,1823.1,1823.0,1.0]
[1680390418920,0.814,1823.1,1823.0,3.2078]
[1680390424629,0.814,1823.1,1823.0,4.06948936]
[1680390424833,0.814,1823.1,1823.0,3.2078]
[1680390426128,0.814,1823.1,1823.0,4.06948936]
[1680390426425,0.86373062,1823.1,1823.0,4.06948936]
[1680390426819,0.86373062,1823.1,1822.9,1.86168936]
[1680390427030,0.819,1823.0,1822.9,1.86168936]
[1680390427231,0.819,1823.0,1822.9,0.86168936]
[1680390428533,0.819,1823.0,1822.9,1.14891915]
[1680390429830,0.819,1823.0,1822.8,5.35671915]
[1680390430534,0.819,1823.0,1822.9,1.73544314]
[1680390432638,0.819,1823.0,1822.9,2.02167794]
[1680390434346,0.819,1823.0,1822.9,0.58652399]
[1680390434653,0.819,1823.0,1822.9,9.32157602]
[1680390444056,0.86880186,1823.0,1822.9,9.32157602]
[1680390447058,0.87180186,1823.0,1822.9,9.32157602]
[1680390450057,0.87180186,1823.0,1822.9,0.58652399]
[1680390450254,0.87180186,1823.0,1822.9,2.02468547]
[1680390451361,0.87180186,1823.0,1822.9,0.58652399]
[1680390452267,0.87180186,1823.0,1822.9,2.02460753]
[1680390452468,0.87180186,1823.0,1822.9,0.58652399]
[1680390452857,0.87180186,1823.0,1822.9,2.02488201]
[1680390454968,0.87180186,1823.0,1822.9,0.58652399]
[1680390455161,0.8686053,1823.0,1822.9,0.58652399]
[1680390455570,0.822,1823.0,1822.9,0.58652399]
[1680390456265,0.86597169,1823.0,1822.9,0.58652399]
[1680390456768,0.86597169,1823.0,1822.9,9.32486173]
[1680390457271,1.38827801,1823.1,1822.9,0.58652399]
[1680390457470,1.38827801,1823.1,1823.0,1.4383177]
[1680390465370,1.38827801,1823.1,1823.0,4.6461177]
[1680390465674,1.38827801,1823.1,1823.0,2.02484169]
[1680390466070,1.38827801,1823.1,1823.0,1.4383177]
[1680390471484,1.43231186,1823.1,1823.0,1.4383177]
[1680390487988,1.43231186,1823.1,1823.0,4.6461177]
[1680390488188,1.43231186,1823.1,1823.0,5.23264169]
[1680390496997,1.43231186,1823.1,1823.0,2.02484169]
[1680390497193,1.43231186,1823.1,1823.0,1.4383177]
[1680390500195,2.2957628,1823.1,1823.0,1.4383177]
[1680390503393,0.85803385,1823.1,1823.0,1.4383177]
[1680390503596,2.295719,1823.1,1823.0,1.4383177]
[1680390504401,1.72029769,1823.1,1823.0,1.4383177]
[1680390504997,2.29570041,1823.1,1823.0,1.4383177]
[1680390505193,1.72029769,1823.1,1823.0,1.4383177]
[1680390509003,1.72029769,1823.1,1823.0,0.58652399]
[1680390509204,1.72029769,1823.1,1822.9,2.02484169]
[1680390509406,1.3893162,1823.0,1822.9,2.02484169]
[1680390509706,1.43350594,1823.0,1822.9,2.02484169]
[1680390517810,0.85818974,1823.0,1822.9,2.02484169]
[1680390518405,0.85818974,1823.0,1822.9,2.02519234]
[1680390536936,1.43350594,1823.0,1822.9,2.02519234]
[1680390543641,1.43350594,1823.0,1822.9,0.58652399]
[1680390543839,1.43350594,1823.0,1822.9,2.02554742]
[1680390544244,1.43350594,1823.0,1822.9,0.58652399]
[1680390544442,1.43350594,1823.0,1822.9,2.02555018]
[1680390545041,1.43350594,1823.0,1822.9,0.58652399]
[1680390545241,1.43350594,1823.0,1822.9,2.02562078]
[1680390546946,1.43350594,1823.0,1822.9,0.58652399]
[1680390549846,0.8555828,1823.0,1822.9,9.32508145]
[1680390560756,0.81139306,1823.0,1822.9,12.53288145]
[1680390561055,0.85579161,1823.0,1822.9,12.53288145]
[1680390561255,0.85579161,1823.0,1822.9,12.53177099]
[1680390561660,1.43110781,1823.0,1822.9,3.79432399]
[1680390561858,0.85579161,1823.0,1822.9,3.79432399]
[1680390562260,1.43110781,1823.0,1822.9,3.79432399]
[1680390562456,1.43110781,1823.0,1822.9,6.67185295]
[1680390562861,1.43110781,1823.0,1822.9,6.67184756]
[1680390566957,1.44171475,1823.0,1822.9,6.67184756]
[1680390579686,0.86639855,1823.0,1822.9,13.97145201]
[1680390580279,0.822,1823.0,1822.9,13.97145201]
[1680390580480,0.822,1823.0,1822.9,19.45645201]
[1680390580680,1.43758004,1823.2,1822.9,14.79045201]
[1680390580983,1.43758004,1823.2,1823.1,1.0]
[1680390581183,0.5753162,1823.2,1823.1,1.58652399]
[1680390581381,0.5753162,1823.2,1823.1,6.23278466]
[1680390582079,0.5753162,1823.2,1823.1,4.79432399]
[1680390585287,0.5753162,1823.2,1823.1,6.23278466]
[1680390586288,0.5753162,1823.2,1823.1,4.79432399]
[1680390586988,1.3953162,1823.2,1823.1,4.79432399]
[1680390589992,1.3953162,1823.2,1823.1,5.94449362]
[1680390591691,1.44136677,1823.2,1823.1,5.94449362]
[1680390592588,1.44136677,1823.2,1823.1,4.79432399]
[1680390594692,0.86605057,1823.2,1823.1,4.79432399]
[1680390595196,0.86605057,1823.2,1823.1,6.23278466]
[1680390595500,0.57506202,1823.4,1823.2,1.0]
[1680390595690,1.43732586,1823.5,1823.3,4.0298]
[1680390595887,0.57506202,1823.5,1823.4,2.14964237]
[1680390597101,0.57506202,1823.5,1823.4,1.0]
[1680390597591,0.57506202,1823.5,1823.4,2.14964237]
[1680390597999,1.39406202,1823.6,1823.4,1.86146834]
[1680390598191,1.39406202,1823.6,1823.5,0.5742884]
[1680390602800,1.38906202,1823.7,1823.5,4.06926834]
[1680390603002,1.38906202,1823.7,1823.6,1.57392887]
[1680390604701,0.57506202,1823.7,1823.6,2.39392887]
[1680390604895,1.43732586,1823.8,1823.6,3.25539721]
[1680390605097,0.57506202,1823.8,1823.7,3.2078]
[1680390606903,1.39506202,1823.9,1823.7,3.2078]
[1680390607399,2.25732586,1823.9,1823.7,3.2078]
[1680390607801,1.39506202,1823.9,1823.7,3.2078]
[1680390614912,0.82,1823.9,1823.7,3.2078]
[1680390615110,1.39506202,1823.9,1823.7,3.2078]
[1680390616608,0.82,1823.9,1823.7,3.2078]
[1680390619916,1.39506202,1823.9,1823.7,3.2078]
[1680390622417,1.82,1823.8,1823.5,3.78172887]
[1680390622616,0.822,1823.6,1823.5,0.57392887]
[1680390622817,0.822,1823.6,1823.5,3.78172887]
[1680390624220,0.822,1823.6,1823.5,0.57392887]
[1680390624409,0.822,1823.6,1823.4,0.57392887]
[1680390624610,0.822,1823.5,1823.4,0.57392887]
[1680390634227,0.822,1823.5,1823.4,1.43539721]
[1680390635926,0.822,1823.5,1823.4,0.86146834]
[1680390637123,0.814,1823.5,1823.4,0.86146834]
[1680390638226,0.814,1823.5,1823.4,1.86146834]
[1680390639934,0.814,1823.5,1823.4,2.14964237]
[1680390641439,0.814,1823.5,1823.4,1.14964237]
[1680390647138,1.39506202,1823.6,1823.4,1.14964237]
[1680390647338,1.39506202,1823.6,1823.5,4.06916738]
[1680390656857,2.25732586,1823.6,1823.5,4.06916738]
[1680390657056,2.25932586,1823.6,1823.5,4.06916738]
[1680390657253,1.39706202,1823.6,1823.5,4.06916738]
[1680390660255,2.25932586,1823.6,1823.5,4.06916738]
[1680390660454,0.57506202,1823.6,1823.5,4.88816738]
[1680390660659,0.57506202,1823.6,1823.5,5.17644237]
[1680390660860,0.57506202,1823.9,1823.5,21.51757976]
[1680390661057,0.57471233,1824.0,1823.8,4.0298]
[1680390661262,0.57471233,1824.0,1823.9,1.14759424]
[1680390661552,1.39471233,1824.0,1823.9,0.86079575]
[1680390661753,1.68206849,1824.0,1823.9,0.86079575]
[1680390661961,2.25680644,1824.0,1823.9,0.86079575]
[1680390662151,1.68206849,1824.0,1823.9,0.86079575]
[1680390662351,2.25680619,1824.0,1823.9,0.86079575]
[1680390662857,1.68206849,1824.0,1823.9,0.86079575]
[1680390663861,1.39445127,1824.0,1823.9,0.86079575]
[1680390664762,1.39055341,1824.0,1823.9,0.86079575]
[1680390665656,1.67817063,1824.0,1823.9,0.57363885]
[1680390666163,1.67817063,1824.0,1823.8,1.4344346]
[1680390666364,0.57437963,1823.9,1823.8,1.4344346]
[1680390666663,0.57437963,1823.9,1823.8,0.57363885]
[1680390667166,1.38937963,1823.9,1823.8,0.57363885]
[1680390668560,2.25144812,1823.9,1823.8,0.57363885]
[1680390668951,1.67706849,1823.9,1823.8,0.57363885]
[1680390669155,2.67706849,1823.9,1823.8,0.57363885]
[1680390669558,2.67706849,1823.9,1823.7,1.4344346]
[1680390669764,1.57432986,1823.8,1823.7,1.4344346]
[1680390670158,1.57432986,1823.8,1823.7,0.57363885]
[1680390671063,0.57432986,1823.8,1823.7,0.57363885]
[1680390673267,1.38932986,1823.9,1823.7,0.86079575]
[1680390673563,1.38932986,1823.9,1823.8,0.57346534]
[1680390674665,1.38932986,1823.9,1823.7,1.53357667]
[1680390674868,1.38932986,1823.9,1823.8,0.57346534]
[1680390675064,1.38932986,1823.9,1823.7,2.53357667]
[1680390675264,1.38932986,1823.9,1823.7,1.53357667]
[1680390676067,1.38932986,1823.9,1823.8,0.57346534]
[1680390676463,1.38932986,1823.9,1823.7,2.53357667]
[1680390676869,1.38932986,1823.9,1823.8,0.57346534]
[1680390677067,0.57432986,1823.9,1823.8,0.57346534]
[1680390678266,0.57432986,1823.9,1823.7,3.35257667]
[1680390678767,0.57432986,1823.9,1823.8,0.57346534]
[1680390686669,0.57432986,1824.0,1823.8,5.89059575]
[1680390686868,0.86206849,1824.1,1823.9,2.68279575]
[1680390686869,0.57432986,1824.1,1823.9,2.68279575]
[1680390687073,0.57432986,1824.1,1824.0,0.57325662]
[1680390687366,0.57432986,1824.1,1824.0,1.57325662]
[1680390688476,0.57432986,1824.1,1824.0,0.67250669]
[1680390690073,0.57432986,1824.1,1824.0,0.09925007]
[1680390700883,0.57432986,1824.1,1824.0,0.67250669]
[1680390701481,0.57432986,1824.1,1824.0,0.09925007]
[1680390701675,1.43639835,1824.1,1824.0,0.09925007]
[1680390702685,0.57432986,1824.1,1824.0,0.09925007]
[1680390702978,0.86206849,1824.1,1824.0,0.67250669]
[1680390707078,1.68406849,1824.1,1824.0,0.67250669]
[1680390726090,0.822,1824.1,1824.0,1.53330244]
[1680390726495,1.68422667,1824.1,1824.0,0.96004582]
[1680390727206,1.43702088,1824.1,1824.0,4.98784582]
[1680390727402,0.86222667,1824.1,1824.0,4.98784582]
[1680390728095,0.86222667,1824.1,1824.0,4.12705007]
[1680390729396,0.86222667,1824.1,1824.0,4.98804833]
[1680390730103,0.86222667,1824.1,1824.0,5.27464431]
[1680390734097,0.86222667,1824.1,1824.0,2.06684431]
[1680390734498,0.86222667,1824.1,1824.0,5.27464431]
[1680390735505,0.86222667,1824.1,1824.0,5.87483207]
[1680390738508,1.43727681,1824.1,1824.0,5.87483207]
[1680390738911,0.86222667,1824.1,1824.0,5.87483207]
[1680390739404,0.86222667,1824.1,1824.0,5.27464431]
[1680390739708,0.86222667,1824.1,1824.0,5.8746096]
[1680390740205,1.43723991,1824.1,1824.0,5.87459675]
[1680390740404,0.86222667,1824.1,1824.0,5.27464431]
[1680390741519,1.43722166,1824.1,1824.0,5.27464431]
[1680390741707,0.86222667,1824.1,1824.0,5.27464431]
[1680390741913,1.43721791,1824.1,1824.0,5.27464431]
[1680390742212,0.86222667,1824.1,1824.0,5.27464431]
[1680390742719,1.43721254,1824.1,1824.0,5.27464431]
[1680390743116,0.86222667,1824.1,1824.0,5.27464431]
[1680390744123,1.43718842,1824.1,1824.0,5.27464431]
[1680390745224,0.86222667,1824.1,1824.0,5.27464431]
[1680390745618,1.43718037,1824.1,1824.0,5.27464431]
[1680390746015,1.43717942,1824.1,1824.0,5.27464431]
[1680390746622,0.57495275,1824.1,1824.0,5.27464431]
[1680390747325,1.43717942,1824.1,1824.0,5.27464431]
[1680390748928,0.86222667,1824.1,1824.0,0.91925007]
[1680390752827,0.86222667,1824.1,1824.0,2.06684431]
[1680390757131,0.86222667,1824.1,1824.0,1.24684431]
[1680390758629,0.86222667,1824.1,1824.0,1.22166084]
[1680390761226,0.86222667,1824.1,1824.0,5.02968129]
[1680390766337,1.4373757,1824.1,1824.0,3.88208705]
[1680390767035,1.4373757,1824.1,1824.0,4.70408705]
[1680390767535,1.4373757,1824.1,1824.0,5.85367271]
[1680390771034,1.4373757,1824.1,1824.0,4.70408705]
[1680390771233,0.86222667,1824.1,1824.0,4.70408705]
[1680390771433,1.43741004,1824.1,1824.0,4.70408705]
[1680390771829,0.86222667,1824.1,1824.0,4.70408705]
[1680390772234,1.43740996,1824.1,1824.0,4.70408705]
[1680390772833,0.86222667,1824.1,1824.0,4.70408705]
[1680390773034,1.4374101,1824.1,1824.0,4.70408705]
[1680390773436,0.86222667,1824.1,1824.0,4.70408705]
[1680390775342,1.43740068,1824.1,1824.0,4.70408705]
[1680390779346,0.57517401,1824.1,1824.0,6.13963291]
[1680390780142,0.57517401,1824.1,1824.0,4.70408705]
[1680390781044,1.43740068,1824.1,1824.0,4.70408705]
[1680390781243,0.57517401,1824.1,1824.0,4.70408705]
[1680390781439,1.43740068,1824.1,1824.0,4.70408705]
[1680390781845,0.57517401,1824.1,1824.0,4.70408705]
[1680390782843,0.57517401,1824.1,1824.0,1.49628705]
[1680390783045,0.57517401,1824.1,1824.0,4.70408705]
[1680390785549,1.43740068,1824.1,1824.0,5.85368334]
[1680390785847,1.43740068,1824.1,1824.0,4.70408705]
[1680390786747,0.57517401,1824.1,1824.0,6.13963291]
[1680390786950,0.57164908,1824.1,1824.0,6.13963291]
[1680390802763,0.57164908,1824.1,1824.0,2.93183291]
[1680390803262,0.57164908,1824.1,1824.0,6.13963291]
[1680390806262,0.86222667,1824.5,1824.1,6.056]
[1680390806567,0.86222667,1824.7,1824.4,5.17490958]
[1680390806760,0.86222667,1824.7,1824.6,0.57405585]
[1680390806965,0.822,1824.7,1824.6,0.57405585]
[1680390807161,2.68367064,1824.7,1824.5,0.86108378]
[1680390807468,3.31569879,1824.6,1824.2,0.86134532]
[1680390807761,1.68379946,1824.3,1824.2,0.86134532]
[1680390807964,2.68379946,1824.3,1824.2,0.86134532]
[1680390808359,2.68379946,1824.3,1824.1,0.86134532]
[1680390808564,1.86179946,1824.3,1824.2,0.94041277]
[1680390808763,2.67679946,1824.3,1824.2,0.94041277]
[1680390809667,2.67679946,1824.3,1824.2,0.07906745]
[1680390813273,1.67679946,1824.3,1824.2,0.07906745]
[1680390822375,1.67679946,1824.3,1824.2,0.94041277]
[1680390827071,0.86179946,1824.3,1824.2,0.94041277]
[1680390835387,1.68379946,1824.4,1824.2,0.07906745]
[1680390835584,1.68379946,1824.4,1824.3,0.86196409]
[1680390835889,1.68379946,1824.4,1824.3,0.93942226]
[1680390837793,1.68379946,1824.4,1824.3,0.07745817]
[1680390838595,1.68379946,1824.4,1824.3,1.93942226]
[1680390838998,1.68379946,1824.4,1824.3,0.93942226]
[1680390842397,1.68379946,1824.4,1824.3,0.07745817]
[1680390846405,2.78506594,1824.4,1824.3,0.07745817]
[1680390846704,3.78506594,1824.4,1824.3,0.07745817]
[1680390850210,2.78506594,1824.4,1824.3,0.07745817]
[1680390852606,2.78506594,1824.4,1824.3,0.93942226]
[1680390857011,1.96306594,1824.4,1824.3,0.93942226]
[1680390891750,1.96306594,1824.4,1824.3,0.07745817]
[1680390892851,1.96306594,1824.4,1824.3,0.9395987]
[1680390920871,3.07233243,1824.4,1824.3,0.9395987]
[1680390921064,4.75406432,1824.4,1824.3,0.07339261]
[1680390921572,1.0,1824.3,1824.2,0.86214053]
[1680390921757,2.97040152,1824.3,1824.2,0.86214053]
[1680390921959,2.97040152,1824.3,1824.2,0.93871548]
[1680390922867,6.17820152,1824.3,1824.2,0.93871548]
[1680390927479,6.17820152,1824.3,1824.2,1.51338495]
[1680390927979,1.43645149,1824.2,1824.0,0.57478665]
[1680390928277,5.46553494,1824.1,1824.0,0.57478665]
[1680390929375,5.17704459,1824.1,1823.9,0.57478665]
[1680390929572,2.68393334,1824.0,1823.9,0.57478665]
[1680390931279,2.68393334,1824.0,1823.8,1.43692718]
[1680390931579,2.38934942,1823.9,1823.8,1.43692718]
[1680390933681,2.38934942,1823.9,1823.8,0.57478665]
[1680390935487,1.815,1823.9,1823.8,0.57478665]
[1680390936184,3.21034942,1823.9,1823.8,0.57478665]
[1680390937081,3.20934942,1823.9,1823.8,0.57478665]
[1680390937382,2.635,1823.9,1823.7,1.43692718]
[1680390937585,0.814,1823.8,1823.7,1.43692718]
[1680390938187,0.814,1823.8,1823.7,0.86214053]
[1680390939285,0.814,1823.8,1823.7,1.4356819]
[1680390941183,0.814,1823.8,1823.7,0.57354137]
[1680390944288,0.819,1823.7,1823.6,0.57354137]
[1680390944485,1.633,1823.7,1823.6,0.57354137]
[1680390947385,1.633,1823.7,1823.5,0.57354137]
[1680390947693,0.815,1823.6,1823.5,1.4356819]
[1680390948394,4.59614942,1823.9,1823.5,0.86214053]
[1680390948597,0.82,1823.7,1823.6,5.06994053]
[1680390956997,0.822,1823.8,1823.6,5.06994053]
[1680390957301,0.822,1823.8,1823.7,0.57334381]
[1680390957500,0.822,1823.8,1823.7,1.57334381]
[1680390957897,1.39634942,1824.0,1823.7,3.25748434]
[1680390958091,1.39634942,1824.0,1823.8,0.57334381]
[1680390958694,0.822,1824.0,1823.8,0.57334381]
[1680390959295,1.39634942,1824.0,1823.8,0.57334381]
[1680390959794,1.39634942,1824.0,1823.9,0.57334381]
[1680390959795,0.822,1824.0,1823.9,0.57334381]
[1680390960101,0.822,1824.0,1823.9,1.57334381]
[1680390960401,0.822,1824.0,1823.9,1.0]
[1680390961500,0.822,1824.0,1823.8,4.64328434]
[1680390962800,0.822,1824.0,1823.9,0.57334381]
[1680390963002,0.822,1824.0,1823.9,1.57334381]
[1680390963206,0.822,1824.0,1823.9,0.57334381]
[1680390963902,1.39634942,1824.0,1823.9,0.57334381]
[1680390965003,0.822,1824.0,1823.9,0.57334381]
[1680390965299,1.39634942,1824.0,1823.9,0.57334381]
[1680390968408,1.39634942,1824.0,1823.9,1.57334381]
[1680390968601,1.39634942,1824.0,1823.9,1.86214053]
[1680390971907,1.39634942,1824.0,1823.9,0.86214053]
[1680390972310,1.39634942,1824.0,1823.9,1.86214053]
[1680390973506,1.39634942,1824.0,1823.9,1.14846042]
[1680390973707,1.39634942,1824.0,1823.9,2.14846042]
[1680390974304,1.39634942,1824.0,1823.9,1.0]
[1680390974609,1.39634942,1824.0,1823.9,2.14846042]
[1680390976406,0.822,1824.0,1823.9,2.14846042]
[1680390976907,1.39634942,1824.0,1823.9,2.14846042]
[1680390977105,0.57434942,1824.0,1823.9,2.14846042]
[1680390977313,1.43628276,1824.1,1823.9,2.14846042]
[1680390977612,0.86193334,1824.1,1824.0,0.86138071]
[1680390978512,0.86193334,1824.1,1824.0,1.43562132]
[1680390979811,0.86193334,1824.1,1824.0,0.57424061]
[1680390987708,0.57446102,1824.1,1824.0,0.86138071]
[1680390987911,0.57446102,1824.1,1824.0,4.06918071]
[1680390988319,0.57446102,1824.1,1824.0,4.64324454]
[1680390990016,1.43639436,1824.1,1824.0,1.43544454]
[1680390990221,0.57446102,1824.1,1824.0,1.43544454]
[1680390990614,0.57446102,1824.1,1824.0,5.46524454]
[1680390990920,0.57446102,1824.1,1824.0,4.89118071]
[1680390991913,0.57446102,1824.1,1824.0,4.0298]
[1680390992112,0.57446102,1824.1,1824.0,4.89093038]
[1680390993418,0.57446102,1824.1,1824.0,4.0298]
[1680390996120,0.57459039,1824.2,1824.1,0.817]
[1680390996324,0.57450248,1824.5,1824.1,8.179762]
[1680390996519,0.57450248,1824.5,1824.4,4.60319252]
[1680390997121,0.57450248,1824.6,1824.4,4.88988878]
[1680390997326,0.57450248,1824.6,1824.5,1.57331108]
[1680390998032,0.57450248,1824.6,1824.5,0.57331108]
[1680390998423,0.57450248,1824.6,1824.4,5.46319986]
[1680390999130,0.57450248,1824.6,1824.4,4.60311108]
[1680391000322,1.38950248,1824.7,1824.4,4.60311108]
[1680391001128,2.25125991,1824.7,1824.4,4.60311108]
[1680391002332,1.38950248,1824.7,1824.4,4.60311108]
[1680391005237,1.38950248,1824.7,1824.4,4.0298]
[1680391008840,1.38950248,1824.7,1824.5,0.11907833]
[1680391013143,0.57450248,1824.7,1824.5,0.11907833]
[1680391018845,1.67775743,1824.8,1824.6,3.2078]
[1680391018846,1.39050248,1824.8,1824.6,3.2078]
[1680391020750,2.25225991,1824.8,1824.6,3.2078]
[1680391020951,0.57450248,1824.7,1824.6,3.2078]
[1680391021552,1.67775743,1824.8,1824.6,3.2078]
[1680391021553,2.25225991,1824.8,1824.6,3.2078]
[1680391021754,1.39050248,1824.8,1824.6,3.2078]
[1680391023167,2.25225991,1824.8,1824.6,3.2078]
[1680391023670,2.25225991,1824.8,1824.7,0.11901214]
[1680391023966,2.25225991,1824.8,1824.6,3.2078]
[1680391024568,0.57450248,1824.7,1824.6,3.2078]
[1680391025669,2.25225991,1824.8,1824.6,3.2078]
[1680391025867,0.57450248,1824.7,1824.6,3.2078]
[1680391027470,0.57450248,1824.7,1824.4,5.60111108]
[1680391030467,0.57450248,1824.7,1824.4,4.60111108]
[1680391032364,0.57450248,1824.6,1824.4,4.60111108]
[1680391034363,0.57450248,1824.6,1824.5,0.57331108]
[1680391034569,0.57450248,1824.6,1824.5,1.57331108]
[1680391034765,0.57450248,1824.6,1824.5,0.57331108]
[1680391037977,0.57417812,1824.6,1824.5,0.57331108]
[1680391038367,0.86175743,1824.6,1824.5,0.86008878]
[1680391038772,0.86175743,1824.6,1824.5,0.97903478]
[1680391040381,1.14924459,1824.6,1824.5,1.26573104]
[1680391044479,1.14924459,1824.6,1824.5,2.26573104]
[1680391044673,1.14924459,1824.6,1824.5,1.26573104]
[1680391044868,0.86269388,1824.6,1824.5,1.78595068]
[1680391046978,0.86269388,1824.6,1824.5,2.60795068]
[1680391047379,0.86269388,1824.6,1824.5,3.60795068]
[1680391048080,0.86269388,1824.6,1824.5,2.60795068]
[1680391052383,0.86269388,1824.6,1824.5,3.60795068]
[1680391053384,0.86269388,1824.6,1824.5,3.08773104]
[1680391053590,0.86269388,1824.6,1824.5,3.60778325]
[1680391054692,0.86269388,1824.6,1824.5,2.60778325]